fUST/lending_fUST_20240821
["ID","MTS","AMOUNT","RATE_DAILY","PERIOD"]
[335465882,1724242240258,-279.79,0.000286,31]
[335465883,1724242240268,-279.79,0.000286,31]
[335465884,1724242240278,-279.79,0.000286,31]
[335465885,1724242240288,-279.79,0.000286,31]
[335465886,1724242240298,-279.79,0.000286,31]
[335465887,1724242240308,-279.79,0.000286,31]
[335465888,1724242240317,-279.79,0.000286,31]
[335465889,1724242240327,-279.79,0.000286,31]
[335465890,1724242240337,-279.79,0.000286,31]
[335465891,1724242240347,-279.79,0.000286,31]
[335465892,1724242240357,-279.79,0.000286,31]
[335465893,1724242240367,-279.79,0.000286,31]
[335465894,1724242240377,-279.79,0.000286,31]
[335465895,1724242240387,-4928.51591256,0.00028632,2]
[335465896,1724242240396,-465.65773855,0.00028796,2]
[335465897,1724242240407,-4928.51591256,0.0002886,2]
[335465898,1724242240419,-225.0,0.00029,2]
[335465899,1724242240429,-85746.60764581,0.00029042,15]
[335465900,1724242240439,-500.0,0.00029121,2]
[335465901,1724242240451,-2100.0,0.00029139,2]
[335465902,1724242240460,-2100.0,0.00029142,2]
[335465903,1724242240470,-4928.51591256,0.00029158,2]
[335465904,1724242240480,-150.112233,0.000292,9]
[335465905,1724242240492,-5387.93,0.000292,14]
[335465906,1724242240502,-700.0,0.00029282,2]
[335465907,1724242240512,-2500.0,0.00029363,4]
[335465908,1724242240522,-150.112233,0.000294,10]
[335465909,1724242240532,-523.09,0.000294,7]
[335465910,1724242240544,-4928.51591256,0.00029431,2]
[335465911,1724242240554,-2100.0,0.00029457,2]
[335465912,1724242240564,-150.112233,0.000295,5]
[335465913,1724242240574,-426.03,0.000295,14]
[335465914,1724242240584,-700.0,0.00029519,2]
[335465915,1724242240593,-800.0,0.00029626,2]
[335465916,1724242240602,-1415.0,0.00029642,2]
[335465917,1724242240611,-405.2,0.00029651,2]
[335465918,1724242240621,-151.0,0.00029651,2]
[335465919,1724242240631,-700.0,0.00029706,2]
[335465920,1724242240641,-4928.51591256,0.00029721,2]
[335465921,1724242240651,-19047.6317886,0.00029762,3]
[335465922,1724242240662,-2100.0,0.00029773,2]
[335465923,1724242240671,-4928.51591256,0.00029972,2]
[335465924,1724242240681,-150.0,0.00029973,5]
[335465925,1724242240691,-700.0,0.00029983,2]
[335465926,1724242240702,-20000.0,0.0003,20]
[335465927,1724242240711,-835.74715033,0.0003,2]
[335465928,1724242240721,-178.72751622,0.0003,5]
[335465929,1724242240730,-300.0,0.0003,2]
[335465930,1724242240740,-151.0,0.0003,120]
[335465931,1724242240751,-639.0,0.0003,120]
[335465932,1724242240760,-504.29406395,0.0003,2]
[335465933,1724242240770,-495.0,0.0003,2]
[335465934,1724242240780,-2100.0,0.00030083,7]
[335465935,1724242240790,-4496.82779985,0.00030142,2]
[335465936,1724242240800,-2100.0,0.00030183,7]
[335465937,1724242240810,-465.03288693,0.00030236,2]
[335465938,1724242240821,-504.29406395,0.000303,2]
[335465939,1724242240831,-19047.6317886,0.00030337,4]
[335465940,1724242240842,-2100.0,0.00030347,7]
[335465941,1724242240853,-2100.0,0.00030373,7]
[335465942,1724242240864,-4928.51591256,0.00030396,2]
[335465943,1724242240874,-5387.93,0.000304,14]
[335465944,1724242240886,-495.0,0.00030411,2]
[335465945,1724242240896,-4928.5159126,0.00030483,2]
[335465946,1724242240906,-161.666969,0.000305,8]
[335465947,1724242240916,-300.0241823,0.00030521,5]
[335465948,1724242240926,-800.0,0.00030556,7]
[335465949,1724242240935,-2100.0,0.00030577,7]
[335465950,1724242240946,-2100.0,0.00030588,7]
[335465951,1724242240955,-523.09,0.000306,7]
[335465952,1724242240965,-504.29406395,0.000306,2]
[335465953,1724242240975,-38095.2635772,0.00030604,4]
[335465954,1724242240985,-3080.05719179,0.00030611,2]
[335465955,1724242240994,-700.0,0.0003065,7]
[335465956,1724242241006,-279.79,0.000307,31]
[335465957,1724242241016,-279.79,0.000307,31]
[335465958,1724242241026,-279.79,0.000307,31]
[335465959,1724242241035,-279.79,0.000307,31]
[335465960,1724242241045,-279.79,0.000307,31]
[335465961,1724242241055,-279.79,0.000307,31]
[335465962,1724242241065,-279.79,0.000307,31]
[335465963,1724242241074,-279.79,0.000307,31]
[335465964,1724242241084,-279.79,0.000307,31]
[335465965,1724242241093,-279.79,0.000307,31]
[335465966,1724242241102,-279.79,0.000307,31]
[335465967,1724242241112,-279.79,0.000307,31]
[335465968,1724242241122,-279.79,0.000307,31]
[335465969,1724242241131,-279.79,0.000307,31]
[335465970,1724242241140,-279.79,0.000307,31]
[335465971,1724242241150,-279.79,0.000307,31]
[335465972,1724242241159,-279.79,0.000307,31]
[335465973,1724242241170,-279.79,0.000307,31]
[335465974,1724242241180,-279.79,0.000307,31]
[335465975,1724242241189,-279.79,0.000307,31]
[335465976,1724242241199,-279.79,0.000307,31]
[335465977,1724242241209,-279.79,0.000307,31]
[335465978,1724242241218,-279.79,0.000307,31]
[335465979,1724242241228,-279.79,0.000307,31]
[335465980,1724242241238,-150.112233,0.000307,8]
[335465981,1724242241248,-426.03,0.000307,14]
[335465982,1724242241257,-405.2,0.00030707,3]
[335465983,1724242241267,-151.0,0.00030707,3]
[335465984,1724242241277,-700.0,0.00030738,7]
[335465985,1724242241287,-3000.0,0.00030762,4]
[335465986,1724242241297,-150.112233,0.000308,8]
[335465987,1724242241307,-700.0,0.00030809,7]
[335465988,1724242241317,-500.0,0.00030881,7]
[335465989,1724242241329,-504.29406395,0.000309,2]
[335465990,1724242241340,-800.0,0.00030954,7]
[335465991,1724242241350,-20000.0,0.00031,22]
[335465992,1724242241361,-1000.0,0.00031,31]
[335465993,1724242241371,-300.0,0.00031,4]
[335465994,1724242241380,-72671.00497509,0.00031,120]
[335465995,1724242241389,-150.112233,0.00031,9]
[335465996,1724242241398,-500.0,0.00031036,7]
[335465997,1724242241409,-800.0,0.00031083,7]
[335465998,1724242241423,-504.29406395,0.000312,2]
[335465999,1724242241432,-2100.0,0.00031235,7]
[335466000,1724242241442,-500.0,0.00031289,7]
[335466001,1724242241460,-800.0,0.00031376,7]
[335466002,1724242241471,-504.29406395,0.000315,2]
[335466003,1724242241480,-500.30425983,0.00031522,7]
[335466004,1724242241490,-385.83533853,0.00031526,4]
[335466005,1724242241502,-285.3614456,0.00031526,3]
[335466006,1724242241512,-154.80649189,0.00031526,4]
[335466007,1724242241522,-19047.6317886,0.00031534,4]
[335466008,1724242241532,-1172.24417509,0.00031544,2]
[335466009,1724242241541,-800.0,0.00031582,7]
[335466010,1724242241552,-500.0,0.00031625,2]
[335466011,1724242241562,-500.0,0.00031625,2]
[335466012,1724242241572,-500.0,0.00031625,2]
[335466013,1724242241582,-500.0,0.00031625,2]
[335466014,1724242241592,-500.0,0.00031625,2]
[335466015,1724242241602,-500.0,0.00031625,2]
[335466016,1724242241611,-609.84994665,0.00031625,2]
[335466017,1724242241621,-495.0,0.00031644,2]
[335466018,1724242241630,-19047.6317886,0.00031656,4]
[335466019,1724242241639,-63553.0,0.00031666,120]
[335466020,1724242241649,-5387.93,0.000317,14]
[335466021,1724242241660,-142104.93038225,0.00031732,2]
[335466022,1724242241670,-150.0,0.00031735,2]
[335466023,1724242241679,-239.615,0.00031735,2]
[335466024,1724242241689,-150.0,0.00031735,2]
[335466025,1724242241698,-150.0,0.00031735,2]
[335466026,1724242241708,-150.0,0.00031735,2]
[335466027,1724242241717,-521.0,0.00031735,2]
[335466028,1724242241727,-465.00164435,0.00031748,2]
[335466029,1724242241737,-405.2,0.00031763,3]
[335466030,1724242241748,-151.0,0.00031763,3]
[335466031,1724242241757,-523.09,0.000318,7]
[335466032,1724242241767,-504.29406395,0.000318,2]
[335466033,1724242241777,-1172.24417508,0.00031937,2]
[335466034,1724242241787,-634.42098133,0.00031995,7]
[335466035,1724242241797,-20000.0,0.00032,24]
[335466036,1724242241807,-150.112233,0.00032,8]
[335466037,1724242241817,-300.0,0.00032,5]
[335466038,1724242241827,-1000.0,0.00032,32]
[335466039,1724242241836,-150.112233,0.00032,6]
[335466040,1724242241846,-426.03,0.00032,14]
[335466041,1724242241856,-2100.0,0.00032018,7]
[335466042,1724242241866,-2100.0,0.00032058,7]
[335466043,1724242241876,-800.0,0.00032061,7]
[335466044,1724242241886,-504.29406395,0.000321,2]
[335466045,1724242241897,-800.0,0.00032181,7]
[335466046,1724242241906,-3500.0,0.00032279,4]
[335466047,1724242241916,-700.0,0.000323,7]
[335466048,1724242241926,-1172.24417508,0.0003233,2]
[335466049,1724242241936,-179.883655,0.00032339,2]
[335466050,1724242241946,-182.754324,0.00032339,2]
[335466051,1724242241957,-180.185325,0.00032339,2]
[335466052,1724242241966,-168.423271,0.00032339,2]
[335466053,1724242241976,-178.490703,0.00032339,2]
[335466054,1724242241985,-180.034489,0.00032339,2]
[335466055,1724242241995,-168.423271,0.00032339,2]
[335466056,1724242242005,-182.754323,0.00032339,2]
[335466057,1724242242014,-180.185325,0.00032339,2]
[335466058,1724242242024,-178.490703,0.00032339,2]
[335466059,1724242242034,-182.754323,0.00032339,2]
[335466060,1724242242043,-180.034489,0.00032339,2]
[335466061,1724242242054,-168.423271,0.00032339,2]
[335466062,1724242242064,-150.112233,0.000324,9]
[335466063,1724242242075,-504.29406395,0.000324,2]
[335466064,1724242242084,-6617.71510224,0.00032422,60]
[335466065,1724242242094,-9999.091,0.000325,20]
[335466066,1724242242104,-150.112233,0.000325,10]
[335466067,1724242242114,-150.112233,0.000325,8]
[335466068,1724242242123,-700.0,0.00032545,7]
[335466069,1724242242134,-1415.0,0.00032642,2]
[335466070,1724242242143,-2100.0,0.00032661,7]
[335466071,1724242242153,-279.79,0.000327,31]
[335466072,1724242242166,-279.79,0.000327,31]
[335466073,1724242242177,-279.79,0.000327,31]
[335466074,1724242242187,-279.79,0.000327,31]
[335466076,1724242242197,-279.79,0.000327,31]
[335466078,1724242242207,-279.79,0.000327,31]
[335466079,1724242242217,-279.79,0.000327,31]
[335466081,1724242242227,-279.79,0.000327,31]
[335466082,1724242242236,-279.79,0.000327,31]
[335466083,1724242242246,-279.79,0.000327,31]
[335466084,1724242242256,-279.79,0.000327,31]
[335466085,1724242242266,-279.79,0.000327,31]
[335466086,1724242242275,-279.79,0.000327,31]
[335466087,1724242242285,-279.79,0.000327,31]
[335466088,1724242242295,-279.79,0.000327,31]
[335466089,1724242242304,-279.79,0.000327,31]
[335466090,1724242242314,-279.79,0.000327,31]
[335466091,1724242242324,-279.79,0.000327,31]
[335466092,1724242242334,-279.79,0.000327,31]
[335466093,1724242242344,-279.79,0.000327,31]
[335466094,1724242242356,-279.79,0.000327,31]
[335466095,1724242242365,-279.79,0.000327,31]
[335466096,1724242242375,-279.79,0.000327,31]
[335466097,1724242242385,-279.79,0.000327,31]
[335466098,1724242242395,-505.30134265,0.000327,2]
[335466099,1724242242405,-1172.24417508,0.00032723,2]
[335466100,1724242242416,-3080.05719179,0.00032756,2]
[335466101,1724242242425,-2100.0,0.00032784,7]
[335466103,1724242242434,-5387.93,0.000328,14]
[335466105,1724242242443,-405.2,0.00032819,4]
[335466106,1724242242455,-151.0,0.00032819,4]
[335466108,1724242242464,-800.0,0.00032848,7]
[335466109,1724242242474,-1000.0,0.00032876,2]
[335466110,1724242242484,-7046.36,0.00032876,21]
[335466111,1724242242495,-1925.73726264,0.00032931,21]
[335466115,1724242242667,-5120.62273736,0.00032931,21]
[335466116,1724242242677,-2100.0,0.00032949,7]
[335466117,1724242242686,-7046.36,0.00032986,21]
[335466118,1724242242696,-4496.82779985,0.00032995,2]
[335466119,1724242242705,-20000.0,0.00033,26]
[335466120,1724242242714,-300.0,0.00033,7]
[335466121,1724242242724,-500.0,0.00033,7]
[335466122,1724242242734,-150.112233,0.00033,7]
[335466123,1724242242743,-1000.0,0.00033,33]
[335466124,1724242242753,-523.09,0.00033,30]
[335466125,1724242242763,-700.0,0.00033006,7]
[335466126,1724242242772,-7046.36,0.00033041,21]
[335466127,1724242242781,-7046.36,0.00033095,21]
[335466128,1724242242791,-426.03,0.000331,14]
[335466129,1724242242801,-1172.24417508,0.00033116,2]
[335466130,1724242242810,-7046.36,0.0003315,21]
[335466131,1724242242819,-2100.0,0.00033203,7]
[335466132,1724242242828,-285.86,0.00033204,2]
[335466133,1724242242838,-285.86,0.00033204,2]
[335466134,1724242242847,-285.86,0.00033204,2]
[335466135,1724242242857,-285.86,0.00033204,2]
[335466136,1724242242867,-285.86,0.00033204,2]
[335466137,1724242242876,-285.86,0.00033204,2]
[335466138,1724242242886,-285.86,0.00033204,2]
[335466139,1724242242895,-285.86,0.00033204,2]
[335466140,1724242242904,-285.86,0.00033204,2]
[335466141,1724242242914,-285.86,0.00033204,2]
[335466142,1724242242924,-7046.36,0.00033205,21]
[335466143,1724242242934,-496.0,0.00033226,2]
[335466144,1724242242943,-155.82579699,0.0003325,3]
[335466145,1724242242953,-7046.36,0.0003326,21]
[335466146,1724242242962,-2100.0,0.000333,7]
[335466147,1724242242971,-7046.36,0.00033315,21]
[335466148,1724242242980,-7046.36,0.00033369,21]
[335466149,1724242242990,-153.0,0.0003337,2]
[335466150,1724242243000,-153.0,0.0003337,2]
[335466151,1724242243009,-153.0,0.0003337,2]
[335466152,1724242243018,-153.0,0.0003337,2]
[335466153,1724242243027,-153.0,0.0003337,2]
[335466154,1724242243036,-432.0882344,0.0003337,2]
[335466155,1724242243046,-154.1757041,0.0003337,2]
[335466156,1724242243056,-1000.0,0.00033424,2]
[335466157,1724242243066,-7046.36,0.00033424,21]
[335466158,1724242243076,-499.3,0.00033479,7]
[335466159,1724242243086,-7046.36,0.00033479,21]
[335466160,1724242243097,-10000.0,0.000335,25]
[335466161,1724242243106,-150.112233,0.000335,8]
[335466162,1724242243116,-1172.24417508,0.00033508,2]
[335466163,1724242243125,-7046.36,0.00033534,21]
[335466164,1724242243136,-7046.36,0.00033589,21]
[335466165,1724242243145,-600.0,0.00033599,2]
[335466166,1724242243156,-700.0,0.00033602,7]
[335466167,1724242243166,-293.418754,0.00033626,2]
[335466168,1724242243175,-7046.36,0.00033643,21]
[335466170,1724242243184,-7046.36,0.00033698,21]
[335466171,1724242243193,-7046.36,0.00033753,21]
[335466172,1724242243202,-3652.97547408,0.00033766,7]
[335466173,1724242243211,-7046.36,0.00033808,21]
[335466175,1724242243221,-7046.36,0.00033863,21]
[335466177,1724242243230,-405.2,0.00033875,4]
[335466179,1724242243239,-151.0,0.00033875,4]
[335466181,1724242243248,-160.0,0.0003388,30]
[335466183,1724242243258,-5387.93,0.000339,14]
[335466185,1724242243267,-4000.0,0.000339,4]
[335466187,1724242243276,-1172.24417508,0.00033901,2]
[335466189,1724242243285,-7046.36,0.00033917,21]
[335466191,1724242243294,-500.0,0.00033931,120]
[335466193,1724242243305,-500.0,0.00033931,120]
[335466194,1724242243314,-500.0,0.00033931,120]
[335466195,1724242243324,-500.0,0.00033931,120]
[335466196,1724242243334,-500.0,0.00033931,120]
[335466197,1724242243344,-500.0,0.00033931,120]
[335466198,1724242243353,-500.0,0.00033931,120]
[335466199,1724242243363,-500.0,0.00033931,120]
[335466200,1724242243373,-500.0,0.00033931,120]
[335466201,1724242243382,-500.0,0.00033931,120]
[335466202,1724242243392,-500.0,0.00033931,120]
[335466203,1724242243402,-500.0,0.00033931,120]
[335466204,1724242243417,-500.0,0.00033931,120]
[335466205,1724242243427,-500.0,0.00033931,120]
[335466206,1724242243437,-500.0,0.00033931,120]
[335466207,1724242243446,-500.0,0.00033931,120]
[335466208,1724242243458,-500.0,0.00033931,120]
[335466209,1724242243468,-481.99,0.00033931,120]
[335466210,1724242243478,-150.0,0.00033936,2]
[335466211,1724242243489,-600.0,0.00033949,2]
[335466212,1724242243499,-182.754324,0.00033956,2]
[335466213,1724242243509,-180.034489,0.00033956,2]
[335466214,1724242243519,-182.754323,0.00033956,2]
[335466215,1724242243529,-182.754323,0.00033956,2]
[335466216,1724242243538,-180.034489,0.00033956,2]
[335466217,1724242243549,-1000.0,0.00033972,2]
[335466218,1724242243559,-7046.36,0.00033972,21]
[335466219,1724242243569,-800.0,0.00033986,7]
[335466220,1724242243579,-20000.0,0.00034,28]
[335466221,1724242243589,-10000.0,0.00034,30]
[335466222,1724242243598,-300.0,0.00034,9]
[335466223,1724242243608,-500.0,0.00034,7]
[335466224,1724242243618,-150.112233,0.00034,6]
[335466225,1724242243628,-500.0,0.00034,120]
[335466226,1724242243638,-238.73,0.00034,120]
[335466227,1724242243648,-1000.0,0.00034,34]
[335466228,1724242243657,-7046.36,0.00034027,21]
[335466229,1724242243668,-153.0,0.00034034,2]
[335466230,1724242243678,-153.0,0.00034034,2]
[335466231,1724242243688,-153.0,0.00034034,2]
[335466232,1724242243697,-153.0,0.00034034,2]
[335466233,1724242243708,-153.0,0.00034034,2]
[335466234,1724242243717,-153.0,0.00034055,2]
[335466235,1724242243727,-501.99527765,0.00034075,7]
[335466236,1724242243737,-7046.36,0.00034082,21]
[335466237,1724242243747,-153.0,0.00034084,2]
[335466238,1724242243757,-153.0,0.00034084,2]
[335466239,1724242243766,-153.0,0.00034084,2]
[335466240,1724242243775,-153.0,0.00034084,2]
[335466241,1724242243784,-7046.50739742,0.00034136,21]
[335466242,1724242243794,-153.0,0.00034177,2]
[335466243,1724242243803,-153.0,0.00034177,2]
[335466244,1724242243814,-153.0,0.00034177,2]
[335466245,1724242243825,-153.0,0.00034177,2]
[335466246,1724242243835,-153.0,0.00034177,2]
[335466247,1724242243846,-153.0,0.00034177,2]
[335466248,1724242243856,-153.0,0.00034177,2]
[335466249,1724242243866,-153.0,0.00034177,2]
[335466250,1724242243875,-153.0,0.00034177,2]
[335466251,1724242243885,-153.0,0.00034177,2]
[335466252,1724242243895,-153.0,0.00034177,2]
[335466253,1724242243904,-153.0,0.00034177,2]
[335466254,1724242243914,-153.0,0.00034177,2]
[335466255,1724242243923,-153.0,0.00034177,2]
[335466256,1724242243933,-153.0,0.00034177,2]
[335466257,1724242243943,-153.0,0.00034177,2]
[335466258,1724242243954,-426.03,0.000342,14]
[335466259,1724242243963,-615.56643318,0.00034206,7]
[335466260,1724242243973,-500.0,0.00034246,21]
[335466261,1724242243982,-284.572659,0.00034247,2]
[335466262,1724242243992,-1172.24417508,0.00034294,2]
[335466263,1724242244001,-600.0,0.00034299,2]
[335466264,1724242244011,-2100.0,0.0003433,7]
[335466265,1724242244020,-171.416253,0.00034399,2]
[335466266,1724242244031,-873.14098692,0.00034408,7]
[335466267,1724242244044,-800.0,0.0003444,7]
[335466268,1724242244054,-10000.0,0.000345,30]
[335466269,1724242244064,-33838.235,0.000345,120]
[335466270,1724242244074,-20879.70423664,0.000345,120]
[335466271,1724242244087,-12958.53176336,0.000345,120]
[335466272,1724242244097,-33838.236,0.000345,120]
[335466273,1724242244106,-7214.93881532,0.000345,120]
[335466274,1724242244118,-26623.29718468,0.000345,120]
[335466275,1724242244127,-2435.6729999,0.000345,120]
[335466276,1724242244162,-31402.5630001,0.000345,120]
[335466277,1724242244172,-300.0,0.000346,5]
[335466278,1724242244355,-1172.24417508,0.00034687,2]
[335466279,1724242244365,-1000.0,0.00034694,7]
[335466280,1724242244374,-150.0,0.00034735,2]
[335466281,1724242244385,-150.0,0.00034735,2]
[335466282,1724242244394,-150.0,0.00034735,2]
[335466283,1724242244403,-521.0,0.00034735,2]
[335466284,1724242244414,-1870.22,0.00034794,21]
[335466285,1724242244425,-1870.22,0.00034794,21]
[335466286,1724242244434,-1870.22,0.00034794,21]
[335466287,1724242244443,-1870.22,0.00034794,21]
[335466288,1724242244454,-1870.22,0.00034794,21]
[335466289,1724242244465,-1870.22,0.00034794,21]
[335466290,1724242244475,-1870.22,0.00034794,21]
[335466291,1724242244486,-1870.22,0.00034794,21]
[335466292,1724242244497,-1870.22,0.00034794,21]
[335466293,1724242244507,-1870.22,0.00034794,21]
[335466294,1724242244516,-1870.22,0.00034794,21]
[335466295,1724242244526,-1870.22,0.00034794,21]
[335466296,1724242244536,-1870.22,0.00034794,21]
[335466297,1724242244545,-1870.22,0.00034794,21]
[335466298,1724242244554,-1870.22,0.00034794,21]
[335466299,1724242244564,-1870.22,0.00034794,21]
[335466300,1724242244573,-1870.22,0.00034794,21]
[335466301,1724242244583,-1870.22,0.00034794,21]
[335466302,1724242244593,-1870.22,0.00034794,21]
[335466303,1724242244603,-1870.22,0.00034794,21]
[335466304,1724242244613,-1870.22,0.00034794,21]
[335466305,1724242244623,-1870.22,0.00034794,21]
[335466306,1724242244635,-1870.22,0.00034794,21]
[335466307,1724242244645,-1870.36404455,0.00034794,21]
[335466308,1724242244656,-23021.672492,0.000348,7]
[335466309,1724242244666,-3000.0,0.000348,21]
[335466310,1724242244677,-279.79,0.000348,31]
[335466311,1724242244686,-279.79,0.000348,31]
[335466312,1724242244696,-279.79,0.000348,31]
[335466313,1724242244707,-279.79,0.000348,31]
[335466314,1724242244723,-279.79,0.000348,31]
[335466315,1724242244732,-279.79,0.000348,31]
[335466316,1724242244741,-279.79,0.000348,31]
[335466317,1724242244751,-279.79,0.000348,31]
[335466318,1724242244761,-279.79,0.000348,31]
[335466319,1724242244771,-279.79,0.000348,31]
[335466320,1724242244781,-279.79,0.000348,31]
[335466321,1724242244791,-279.79,0.000348,31]
[335466322,1724242244801,-279.79,0.000348,31]
[335466323,1724242244811,-279.79,0.000348,31]
[335466324,1724242244823,-279.79,0.000348,31]
[335466325,1724242244834,-279.79,0.000348,31]
[335466326,1724242244846,-3000.0,0.0003481,21]
[335466327,1724242244857,-3000.0,0.0003482,21]
[335466328,1724242244867,-3000.0,0.0003483,21]
[335466329,1724242244876,-3000.0,0.0003484,21]
[335466330,1724242244885,-500.29195024,0.00034846,7]
[335466331,1724242244896,-2500.0,0.00034846,7]
[335466332,1724242244905,-1134.50320716,0.00034847,21]
[335466333,1724242244917,-160.0,0.00034848,10]
[335466334,1724242244928,-160.0,0.00034848,10]
[335466335,1724242244938,-160.0,0.00034848,10]
[335466336,1724242244948,-160.0,0.00034848,10]
[335466337,1724242244960,-500.0,0.00034849,3]
[335466338,1724242244970,-500.0,0.00034849,21]
[335466339,1724242244979,-500.0,0.00034849,21]
[335466340,1724242244988,-500.0,0.00034849,21]
[335466341,1724242244998,-500.0,0.00034849,21]
[335466342,1724242245007,-500.0,0.00034849,21]
[335466343,1724242245017,-580.84,0.00034849,21]
[335466344,1724242245026,-255.2,0.00034849,21]
[335466345,1724242245036,-500.0,0.00034849,21]
[335466346,1724242245046,-500.0,0.00034849,21]
[335466347,1724242245056,-613.71338616,0.00034849,21]
[335466348,1724242245066,-500.0,0.00034849,21]
[335466349,1724242245076,-500.0,0.00034849,21]
[335466350,1724242245086,-500.0,0.00034849,21]
[335466351,1724242245095,-500.0,0.00034849,21]
[335466352,1724242245105,-500.0,0.00034849,21]
[335466353,1724242245115,-500.0,0.00034849,21]
[335466354,1724242245124,-500.0,0.00034849,21]
[335466355,1724242245133,-500.0,0.00034849,21]
[335466356,1724242245143,-500.0,0.00034849,21]
[335466357,1724242245152,-500.0,0.00034849,21]
[335466358,1724242245161,-500.0,0.00034849,21]
[335466359,1724242245171,-500.0,0.00034849,21]
[335466360,1724242245180,-500.0,0.00034849,21]
[335466361,1724242245190,-500.0,0.00034849,21]
[335466362,1724242245199,-500.0,0.00034849,21]
[335466363,1724242245209,-500.0,0.00034849,21]
[335466364,1724242245218,-500.0,0.00034849,21]
[335466365,1724242245227,-500.0,0.00034849,21]
[335466366,1724242245236,-500.0,0.00034849,21]
[335466367,1724242245246,-500.0,0.00034849,21]
[335466368,1724242245255,-500.0,0.00034849,21]
[335466369,1724242245264,-500.0,0.00034849,21]
[335466370,1724242245274,-500.0,0.00034849,21]
[335466371,1724242245283,-500.0,0.00034849,21]
[335466372,1724242245292,-500.0,0.00034849,21]
[335466373,1724242245302,-500.0,0.00034849,21]
[335466374,1724242245311,-500.0,0.00034849,21]
[335466375,1724242245320,-500.0,0.00034849,21]
[335466376,1724242245329,-500.0,0.00034849,21]
[335466377,1724242245339,-500.0,0.00034849,21]
[335466378,1724242245349,-500.0,0.00034849,21]
[335466379,1724242245359,-500.0,0.00034849,21]
[335466380,1724242245368,-500.0,0.00034849,21]
[335466381,1724242245378,-584.18,0.00034849,21]
[335466382,1724242245388,-405.31,0.00034849,21]
[335466383,1724242245398,-500.0,0.00034849,21]
[335466384,1724242245409,-500.0,0.00034849,21]
[335466385,1724242245422,-500.0,0.00034849,21]
[335466386,1724242245432,-500.0,0.00034849,21]
[335466387,1724242245441,-500.0,0.00034849,21]
[335466388,1724242245453,-500.0,0.00034849,21]
[335466389,1724242245463,-500.0,0.00034849,21]
[335466390,1724242245473,-500.0,0.00034849,21]
[335466391,1724242245482,-327.05,0.00034849,21]
[335466392,1724242245493,-500.0,0.00034849,21]
[335466393,1724242245502,-500.0,0.00034849,21]
[335466394,1724242245512,-500.0,0.00034849,21]
[335466395,1724242245522,-500.0,0.00034849,21]
[335466396,1724242245531,-500.0,0.00034849,21]
[335466397,1724242245541,-500.0,0.00034849,21]
[335466398,1724242245551,-500.0,0.00034849,21]
[335466399,1724242245560,-500.0,0.00034849,21]
[335466400,1724242245569,-500.0,0.00034849,21]
[335466401,1724242245579,-500.0,0.00034849,21]